bitfinex/quotes_SOLUSD_20251126
["timestamp","ask_amount","ask_price","bid_price","bid_amount"]
[1764175475964,4.84244307,137.13,137.12,3.26]
[1764175476162,0.71,137.15,137.12,3.92]
[1764175476163,4.84244307,137.14,137.12,3.92]
[1764175476470,25.11880892,137.17,137.13,0.66]
[1764175476676,4.84244307,137.15,137.13,0.66]
[1764175476974,4.84244307,137.14,137.12,3.92]
[1764175477473,4.84244307,137.14,137.12,11.2123614]
[1764175478072,4.84244307,137.15,137.13,0.66]
[1764175478275,4.84244307,137.16,137.13,0.66]
[1764175479581,4.84244307,137.16,137.14,7.29181857]
[1764175479765,4.84244307,137.16,137.15,3.26]
[1764175480571,14.36238799,137.16,137.14,3.26]
[1764175480881,4.84244307,137.15,137.14,3.26]
[1764175482062,5.55244307,137.15,137.12,69.9926758]
[1764175482268,0.71,137.14,137.13,3.26]
[1764175482572,4.84244307,137.14,137.13,3.26]
[1764175484080,4.84244307,137.14,137.13,10.55235032]
[1764175487692,4.84244307,137.14,137.12,7.29266929]
[1764175487989,4.84244307,137.14,137.13,3.26]
[1764175489186,0.71,137.15,137.13,3.26]
[1764175489392,4.84244307,137.14,137.13,3.26]
[1764175489965,4.84244307,137.14,137.13,10.55235032]
[1764175490166,4.84244307,137.16,137.13,29.49322613]
[1764175490380,4.84244307,137.16,137.14,0.71]
[1764175490857,4.84244307,137.16,137.13,28.78322613]
[1764175491062,4.84244307,137.16,137.13,29.49322613]
[1764175491672,4.84244307,137.16,137.14,0.71]
[1764175492187,0.71,137.17,137.15,7.29128691]
[1764175492399,4.84244307,137.16,137.15,7.29128691]
[1764175492569,4.84244307,137.16,137.13,18.23087581]
[1764175492570,4.84244307,137.16,137.14,7.29157401]
[1764175492774,0.71,137.17,137.15,3.26]
[1764175492981,4.84244307,137.16,137.15,3.26]
[1764175493868,5.55244307,137.16,137.15,3.26]
[1764175494073,4.84244307,137.16,137.15,3.26]
[1764175494684,4.84244307,137.16,137.15,10.55128691]
[1764175495695,4.84244307,137.16,137.15,3.26]
[1764175495883,4.84244307,137.16,137.15,10.55128691]
[1764175496426,8.80994492,137.09,136.97,0.1]
[1764175496695,8.80994492,137.01,136.97,0.1]
[1764175496989,8.80994492,137.03,136.98,8.10244307]
[1764175497209,19.35974122,137.08,137.0,4.84244307]
[1764175497491,8.80994492,137.06,137.02,4.84244307]
[1764175497694,16.308864,137.07,137.03,4.84244307]
[1764175497992,19.35974122,137.11,136.99,5.55244307]
[1764175497993,8.80994492,137.08,137.05,4.84244307]
[1764175498295,8.80994492,137.09,137.05,7.29660707]
[1764175498477,8.80994492,137.09,137.06,0.71]
[1764175498679,8.80994492,137.09,137.07,3.26]
[1764175499077,8.80994492,137.09,137.08,0.71]
[1764175500094,8.80994492,137.1,137.08,0.71]
[1764175500386,8.80994492,137.11,137.08,0.71]
[1764175500773,8.80994492,137.11,137.08,8.00488061]
[1764175501097,8.80994492,137.11,137.08,0.71]
[1764175501298,8.80994492,137.11,137.09,0.71]
[1764175501485,8.80994492,137.11,137.1,3.26]
[1764175501676,13.65238799,137.11,137.08,3.26]
[1764175501872,8.80994492,137.09,137.08,3.26]
[1764175502104,8.80994492,137.09,137.08,3.97]
[1764175505613,21.15130707,137.12,137.08,3.97]
[1764175505906,8.80994492,137.11,137.09,0.71]
[1764175506285,8.80994492,137.12,137.09,0.71]
[1764175506490,13.65238799,137.12,137.09,0.71]
[1764175506693,13.65238799,137.12,137.07,0.69]
[1764175506694,4.84244307,137.1,137.07,0.69]
[1764175506901,4.84244307,137.08,137.07,0.69]
[1764175507215,8.80994492,137.15,137.07,5.53244307]
[1764175507408,8.80994492,137.12,137.08,0.69]
[1764175507576,13.65238799,137.12,137.09,3.26]
[1764175507779,8.80994492,137.15,137.1,0.69]
[1764175508014,4.84244307,137.11,137.1,0.69]
[1764175508885,4.84244307,137.14,137.1,0.69]
[1764175509291,4.84244307,137.13,137.1,7.98375388]
[1764175509490,4.84244307,137.13,137.1,0.69]
[1764175509695,4.84244307,137.13,137.11,0.69]
[1764175511101,4.84244307,137.13,137.11,7.98321668]
[1764175511304,4.84244307,137.14,137.11,7.98321668]
[1764175511607,4.84244307,137.14,137.12,0.69]
[1764175512104,4.84244307,137.15,137.13,3.26]
[1764175512320,4.84244307,137.14,137.13,3.26]
[1764175512487,4.84244307,137.14,137.13,3.95]
[1764175512681,13.65238799,137.14,137.13,0.69]
[1764175512886,4.84244307,137.14,137.13,0.69]
[1764175513084,8.80994492,137.13,137.09,7.29425946]
[1764175513278,4.84244307,137.11,137.1,3.95]
[1764175513594,4.84244307,137.12,137.1,3.95]
[1764175513795,4.84244307,137.12,137.11,0.69]
[1764175513991,8.80994492,137.16,137.11,0.69]
[1764175514297,16.10073525,137.16,137.11,0.69]
[1764175514501,4.84244307,137.13,137.11,0.69]
[1764175515403,4.84244307,137.13,137.11,7.98334221]
[1764175515708,4.84244307,137.13,137.12,0.66]
[1764175516706,4.84244307,137.13,137.12,3.92]
[1764175516911,4.84244307,137.13,137.12,0.66]
[1764175517505,4.84244307,137.13,137.1,3.92]
[1764175517807,4.84244307,137.11,137.1,3.92]
[1764175518304,4.84244307,137.12,137.1,0.66]
[1764175518509,13.65238799,137.12,137.11,0.66]
[1764175519494,13.65238799,137.12,137.1,0.66]
[1764175519683,4.84244307,137.11,137.1,0.66]
[1764175520307,13.65238799,137.12,137.1,3.92]
[1764175520606,4.84244307,137.11,137.07,62.7]
[1764175520791,4.84244307,137.1,137.08,3.92]
[1764175520998,4.84244307,137.1,137.08,66.62]
[1764175521191,4.84244307,137.1,137.09,0.66]
[1764175522107,4.84244307,137.1,137.09,3.92]
[1764175522706,13.65238799,137.1,137.09,0.66]
[1764175523006,13.65238799,137.1,137.09,3.92]
[1764175523197,4.84244307,137.1,137.09,3.92]
[1764175524093,4.84244307,137.1,137.09,3.26]
[1764175524508,4.84244307,137.1,137.09,3.92]
[1764175528114,8.80994492,137.11,137.09,3.92]
[1764175528316,13.65238799,137.11,137.1,0.66]
[1764175528518,11.91358987,137.11,137.1,0.66]
[1764175532926,8.80994492,137.1,137.09,3.92]
[1764175533100,11.91358987,137.1,137.09,3.26]
[1764175533513,11.91358987,137.1,137.09,3.92]
[1764175533817,0.31,137.17,137.09,11.21447808]
[1764175534022,3.10364495,137.11,137.1,0.66]
[1764175534323,3.10364495,137.11,137.1,3.26]
[1764175535025,3.10364495,137.11,137.1,3.92]
[1764175535225,3.10364495,137.12,137.1,11.21394602]
[1764175535433,8.80994492,137.14,137.11,0.66]
[1764175535601,3.10364495,137.12,137.11,0.66]
[1764175536620,8.80994492,137.14,137.11,0.66]
[1764175536825,11.91358987,137.12,137.11,0.66]
[1764175537212,8.80994492,137.12,137.11,0.66]
[1764175537415,11.91358987,137.12,137.11,0.66]
[1764175537616,0.31,137.17,137.11,7.95341404]
[1764175537805,3.10364495,137.14,137.12,0.66]
[1764175538005,8.80994492,137.14,137.13,3.26]
[1764175538413,8.80994492,137.14,137.13,3.92]
[1764175538613,11.91358987,137.14,137.13,3.92]
[1764175539336,8.80994492,137.13,137.11,3.26]
[1764175539534,3.10364495,137.12,137.09,7.95426561]
[1764175539830,8.80994492,137.13,137.1,3.92]
[1764175539831,3.10364495,137.11,137.1,3.92]
[1764175542134,8.80994492,137.1,137.07,0.66]
[1764175542303,3.10364495,137.08,137.07,3.92]
[1764175542503,3.10364495,137.08,137.05,3.26]
[1764175542716,11.91358987,137.07,137.06,0.66]
[1764175544603,11.91358987,137.07,137.05,3.26]
[1764175544813,3.10364495,137.06,137.05,3.93]
[1764175545103,11.91358987,137.07,137.05,10.55646736]
[1764175545513,11.91358987,137.07,137.06,0.67]
[1764175546826,8.80994492,137.07,137.06,0.67]
[1764175547322,16.308864,137.12,137.06,7.96607471]
[1764175547525,3.10364495,137.09,137.06,70.66607471]
[1764175547829,3.10364495,137.08,137.07,3.26]
[1764175548217,3.10364495,137.08,137.06,63.37]
[1764175548411,3.10364495,137.07,137.06,63.37]
[1764175548614,8.80994492,137.06,137.04,3.26]
[1764175548829,11.91358987,137.05,137.04,0.67]
[1764175549029,8.80994492,137.04,136.97,0.1]
[1764175549234,3.10364495,136.98,136.97,0.77]
[1764175550111,3.10364495,136.99,136.97,8.0708688]
[1764175550334,11.91358987,136.99,136.98,0.67]
[1764175550534,16.21240778,136.99,136.98,0.67]
[1764175552013,7.40246286,137.03,136.98,7.97033581]
[1764175552233,7.40246286,137.06,137.01,7.40246286]
[1764175552434,7.40246286,137.06,137.02,3.93]
[1764175552936,7.40246286,137.06,137.03,0.67]
[1764175553322,7.40246286,137.06,137.03,7.96728777]
[1764175553710,16.21240778,137.08,137.04,0.67]
[1764175553914,7.40246286,137.07,137.04,0.67]
[1764175554922,7.40246286,137.08,137.04,0.67]
[1764175555332,8.80994492,137.08,137.05,10.55660707]
[1764175555743,8.80994492,137.08,137.06,0.67]
[1764175556639,16.21240778,137.08,137.06,0.67]
[1764175556840,7.40246286,137.07,137.06,3.26]
[1764175557035,7.40246286,137.07,137.06,3.93]
[1764175557217,16.21240778,137.08,137.06,3.93]
[1764175557419,16.21240778,137.08,137.07,0.67]
[1764175558531,8.80994492,137.08,137.06,10.55599335]
[1764175558738,16.21240778,137.08,137.06,11.22599335]
[1764175560239,16.308864,137.11,137.07,0.67]
[1764175560448,7.40246286,137.09,137.07,7.96549764]
[1764175561348,9.11994492,137.11,137.07,7.96549764]
[1764175561552,16.21240778,137.09,137.08,0.67]
[1764175563157,8.80994492,137.08,137.06,3.26]
[1764175563457,8.80994492,137.09,137.07,0.67]
[1764175563623,7.40246286,137.11,137.07,8.07246286]
[1764175563824,7.40246286,137.11,137.08,0.67]
[1764175564150,7.40246286,137.11,137.09,3.26]
[1764175564530,7.40246286,137.11,137.09,3.93]
[1764175565050,7.40246286,137.11,137.09,11.22443373]
[1764175565425,8.80994492,137.11,137.09,11.22443373]
[1764175566255,8.80994492,137.11,137.09,73.92443373]
[1764175566954,7.40246286,137.13,137.1,0.67]
[1764175567133,7.40246286,137.13,137.1,63.37]
[1764175567662,7.40246286,137.13,137.11,0.67]
[1764175567880,16.21240778,137.12,137.11,0.67]
[1764175568171,8.80994492,137.11,137.1,62.7]
[1764175568478,16.21240778,137.11,137.1,62.7]
[1764175569468,3.57,137.16,137.1,70.66394602]
[1764175569648,8.80994492,137.13,137.1,69.99394602]
[1764175569847,16.21240778,137.13,137.1,70.66394602]
[1764175570162,16.21240778,137.13,137.11,0.67]
[1764175571147,7.71246286,137.12,137.1,62.7]
[1764175571349,8.80994492,137.11,137.1,62.7]
[1764175571669,8.80994492,137.11,137.1,63.37]
[1764175572568,8.80994492,137.11,137.1,62.7]
[1764175572569,11.91343105,137.11,137.1,62.7]
[1764175572749,19.20684509,137.11,137.1,62.7]
[1764175573066,11.91343105,137.11,137.1,62.7]
[1764175573261,19.20684509,137.11,137.1,62.7]
[1764175573450,19.51684509,137.11,137.1,62.7]
[1764175573650,19.51684509,137.11,137.06,62.7]
[1764175573844,11.91343105,137.08,137.07,3.26]
[1764175574044,11.91343105,137.08,137.07,3.93]
[1764175574256,11.91343105,137.1,137.07,3.93]
[1764175574570,7.29308128,137.12,137.07,3.93]
[1764175574571,11.91343105,137.11,137.08,0.66]
[1764175574749,11.91343105,137.11,137.08,63.36]
[1764175575064,11.91343105,137.11,137.09,0.66]
[1764175576167,3.26,137.15,137.09,0.66]
[1764175576168,3.26,137.15,137.1,3.26]
[1764175576377,3.10348613,137.12,137.1,65.96]
[1764175576560,3.10348613,137.12,137.1,66.62]
[1764175577252,3.10348613,137.12,137.1,3.92]
[1764175578068,8.80994492,137.11,137.1,3.26]
[1764175578246,11.91343105,137.12,137.1,3.26]
[1764175578446,11.91343105,137.11,137.1,3.26]
[1764175578867,8.80994492,137.12,137.1,3.26]
[1764175579169,3.10348613,137.11,137.1,3.26]
[1764175579975,3.10348613,137.11,137.1,3.92]
[1764175580270,8.80994492,137.12,137.1,3.92]
[1764175580571,3.10348613,137.11,137.1,3.92]
[1764175582877,11.91343105,137.12,137.1,3.92]
[1764175583271,16.10283314,137.12,137.1,3.92]
[1764175583451,3.10348613,137.11,137.1,3.92]
[1764175583857,8.80994492,137.15,137.1,32.55229721]
[1764175584055,0.31,137.19,137.11,0.94432314]
[1764175584271,10.39241017,137.2,137.15,3.10348613]
[1764175584474,3.41348613,137.21,137.16,7.02348613]
[1764175584773,3.10348613,137.22,137.17,11.05340606]
[1764175585074,3.10348613,137.24,137.19,3.10348613]
[1764175585276,3.10348613,137.24,137.2,3.92]
[1764175585574,3.30348613,137.25,137.2,7.02348613]
[1764175585883,3.30348613,137.25,137.21,0.66]
[1764175586064,8.80994492,137.24,137.21,0.66]
[1764175586263,10.58948152,137.25,137.21,0.66]
[1764175586665,14.86109897,137.25,137.21,0.66]
[1764175586877,14.86109897,137.25,137.21,7.94803715]
[1764175587060,8.80994492,137.24,137.21,7.94803715]
[1764175587260,8.80994492,137.24,137.22,0.66]
[1764175588066,9.00994492,137.25,137.22,0.66]
[1764175588265,9.00994492,137.25,137.23,3.26]
[1764175588781,21.84879849,137.25,137.23,3.92]
[1764175589073,0.2,137.25,137.24,0.66]
[1764175590361,0.2,137.25,137.23,3.26]
[1764175590565,0.2,137.25,137.23,3.92]
[1764175591773,12.83885357,137.24,137.22,3.26]
[1764175592080,12.83885357,137.23,137.22,3.26]
[1764175592781,12.83885357,137.24,137.22,3.26]
[1764175593482,20.12540201,137.24,137.22,3.26]
[1764175594283,21.64879849,137.23,137.21,3.26]
[1764175594583,12.83885357,137.24,137.21,3.92]
[1764175595077,12.83885357,137.23,137.21,3.92]
[1764175595284,12.83885357,137.23,137.21,3.26]
[1764175595573,13.14885357,137.22,137.19,3.26]
[1764175595781,12.83885357,137.21,137.19,3.26]
[1764175596464,12.83885357,137.22,137.19,3.26]
[1764175596878,12.83885357,137.22,137.19,3.92]
[1764175597682,20.12651051,137.22,137.19,3.92]
[1764175597881,16.40735043,137.23,137.19,3.92]
[1764175598074,12.83885357,137.22,137.19,3.92]
[1764175598272,12.83885357,137.22,137.2,0.66]
[1764175598469,16.29613079,137.25,137.21,7.28809853]
[1764175598666,16.29613079,137.25,137.22,3.26]
[1764175598667,21.84879849,137.25,137.22,3.26]
[1764175598871,21.84879849,137.25,137.22,0.66]
[1764175598872,29.13488751,137.25,137.22,0.66]
[1764175599185,8.80994492,137.18,137.13,0.66]
[1764175599383,8.80994492,137.15,137.13,0.66]
[1764175599585,12.83885357,137.16,137.13,0.66]
[1764175599880,8.80994492,137.17,137.13,13.49885357]
[1764175600379,8.80994492,137.17,137.14,0.66]
[1764175600587,8.80994492,137.17,137.15,10.55128691]
[1764175601393,8.80994492,137.17,137.15,11.21128691]
[1764175601882,8.80994492,137.17,137.13,31.06928131]
[1764175601883,21.64879849,137.17,137.13,7.95221449]
[1764175602183,21.64879849,137.17,137.16,3.26]
[1764175606079,21.64879849,137.17,137.16,3.96]
[1764175606262,8.80994492,137.17,137.16,3.96]
[1764175606463,8.80994492,137.18,137.16,3.96]
[1764175606672,8.80994492,137.18,137.17,0.7]
[1764175606873,8.80994492,137.19,137.17,0.7]
[1764175607074,8.80994492,137.23,137.17,76.23885357]
[1764175607275,8.80994492,137.21,137.17,76.23885357]
[1764175607475,8.80994492,137.21,137.18,13.53885357]
[1764175607681,8.80994492,137.22,137.19,16.09885357]
[1764175607884,8.80994492,137.23,137.19,16.79885357]
[1764175608088,8.80994492,137.23,137.2,0.7]
[1764175608668,8.80994492,137.23,137.2,7.98840079]
[1764175609005,8.80994492,137.23,137.21,0.7]
[1764175610784,8.80994492,137.23,137.22,3.26]
[1764175611392,21.95879849,137.23,137.22,3.26]
[1764175611590,29.24583485,137.23,137.22,3.26]
[1764175611795,29.24583485,137.23,137.2,3.26]
[1764175611994,21.64879849,137.21,137.2,3.26]
[1764175614398,8.80994492,137.21,137.2,3.26]
[1764175616529,8.80994492,137.2,137.19,63.4]
[1764175616700,8.80994492,137.2,137.19,66.66]
[1764175617203,8.80994492,137.21,137.19,73.94916101]
[1764175619991,8.80994492,137.21,137.19,66.66]
[1764175620192,8.80994492,137.21,137.19,73.94910642]
[1764175620909,21.64879849,137.21,137.19,73.94910642]
[1764175621109,28.93692815,137.21,137.17,62.7]
[1764175621408,28.93692815,137.21,137.16,7.99029924]
[1764175621409,21.64879849,137.18,137.16,7.99029924]
[1764175621595,21.64879849,137.18,137.17,3.26]
[1764175622117,29.24849086,137.18,137.13,7.29213735]
[1764175622402,21.64879849,137.14,137.1,0.7]
[1764175622601,12.83885357,137.14,137.11,3.26]
[1764175622801,8.80994492,137.13,137.11,3.26]
[1764175622992,8.80994492,137.13,137.12,0.7]
[1764175623306,8.80994492,137.13,137.11,3.96]
[1764175623506,8.80994492,137.13,137.11,3.26]
[1764175623707,21.64879849,137.13,137.12,0.7]
[1764175624086,21.64879849,137.13,137.11,3.26]
[1764175624298,21.64879849,137.13,137.11,3.96]
[1764175624499,8.80994492,137.11,137.0,95.03885356]
[1764175624698,13.14885357,137.12,137.0,95.03885356]
[1764175624699,8.80994492,137.09,137.07,0.7]
[1764175624899,8.80994492,137.07,137.02,31.78436517]
[1764175625100,12.83885357,137.06,137.03,0.7]
[1764175625291,12.83885357,137.06,137.03,3.96]
[1764175625495,21.64879849,137.05,137.03,3.26]
[1764175625699,21.64879849,137.04,137.03,3.26]
[1764175625902,8.80994492,137.04,137.01,0.7]
[1764175626106,21.64879849,137.03,137.02,3.26]
[1764175626913,8.80994492,137.05,137.02,3.92]
[1764175627126,16.308864,137.08,137.03,0.66]
[1764175627299,8.80994492,137.07,137.03,13.49885357]
[1764175627494,8.80994492,137.07,137.03,76.19885357]
[1764175627695,8.80994492,137.07,137.04,0.66]
[1764175627896,8.80994492,137.07,137.05,3.26]
[1764175628308,21.64879849,137.07,137.05,3.26]
[1764175628509,21.64879849,137.07,137.05,3.92]
[1764175629486,8.80994492,137.06,137.05,3.26]
[1764175630205,8.80994492,137.06,137.05,3.92]
[1764175631614,16.308864,137.08,137.05,66.62]
[1764175631818,8.80994492,137.1,137.06,0.66]
[1764175631995,8.80994492,137.08,137.06,62.7]
[1764175632315,21.64879849,137.07,137.06,65.96]
[1764175632518,21.64879849,137.07,137.06,3.26]
[1764175632817,8.80994492,137.06,137.04,0.66]
[1764175633122,8.80994492,137.05,137.04,3.92]
[1764175634024,21.64879849,137.05,137.04,3.26]
[1764175634225,8.80994492,137.04,136.97,75.63885357]
[1764175634515,12.83885357,137.02,136.98,11.22033581]
[1764175634716,8.80994492,137.02,136.98,42.31002891]
[1764175634904,8.80994492,137.02,136.99,0.66]
[1764175635292,12.83885357,137.04,136.99,13.49885357]
[1764175635497,12.83885357,137.04,137.0,3.26]
[1764175635498,8.80994492,137.03,137.0,3.26]
[1764175635697,8.80994492,137.03,137.0,3.92]
[1764175635907,7.29520509,137.08,137.01,13.49885357]
[1764175636200,8.80994492,137.02,137.0,62.7]
[1764175636518,8.80994492,137.02,137.01,3.26]
[1764175636821,8.80994492,137.02,137.01,3.92]
[1764175637198,8.80994492,137.02,137.01,3.26]
[1764175637696,8.80994492,137.04,137.01,3.92]
[1764175637893,8.80994492,137.04,137.02,0.66]
[1764175638321,8.80994492,137.05,137.02,7.9577444]
[1764175638523,21.64879849,137.05,137.02,7.9577444]
[1764175638706,12.83885357,137.04,137.02,0.66]
[1764175639111,8.80994492,137.04,137.03,0.66]
[1764175639308,21.64879849,137.04,137.01,10.55853165]
[1764175639517,8.80994492,137.01,137.0,0.66]
[1764175639812,12.83885357,137.05,137.01,0.66]
[1764175640020,12.83885357,137.07,137.02,12.83885357]
[1764175640315,12.83885357,137.07,137.03,10.55723204]
[1764175640514,32.41390389,137.08,137.03,3.26]
[1764175640515,21.64879849,137.05,137.03,3.26]
[1764175641718,13.14885357,137.04,137.0,7.29897048]
[1764175641925,12.83885357,137.03,137.01,3.26]
[1764175642226,12.83885357,137.04,137.01,3.26]
[1764175642421,45.25441127,137.05,137.01,11.21866743]
[1764175642926,45.25441127,137.05,137.01,11.2186307]
[1764175643227,45.56441127,137.05,137.01,11.2186307]
[1764175643412,12.83885357,137.03,137.01,3.26]
[1764175644021,21.64879849,137.02,136.99,0.66]
[1764175644227,21.64879849,137.02,136.99,3.26]
[1764175644406,12.83885357,137.01,136.99,3.26]
[1764175645005,21.64879849,137.02,136.99,11.21975693]
[1764175645202,13.14885357,137.01,136.99,3.26]
[1764175645402,21.64879849,137.0,136.97,0.1]
[1764175645724,21.64879849,136.98,136.97,3.36]
[1764175645914,8.80994492,136.98,136.97,0.1]
[1764175646119,21.64879849,136.98,136.97,0.1]
[1764175646349,8.80994492,136.98,136.97,0.1]
[1764175646513,8.80994492,137.03,136.97,13.59885357]
[1764175646826,8.80994492,137.01,136.98,3.26]
[1764175647038,8.80994492,137.01,136.98,3.92]
[1764175647228,12.83885357,137.02,136.97,12.93885357]
[1764175647229,21.64879849,137.0,136.97,0.1]
[1764175647414,21.64879849,137.0,136.98,3.26]
[1764175647415,12.83885357,136.99,136.98,3.26]
[1764175647723,8.80994492,137.0,136.98,10.56031657]
[1764175647924,8.80994492,137.02,136.99,0.66]
[1764175648131,21.64879849,137.02,136.99,0.66]
[1764175648503,12.83885357,137.1,136.99,13.49885357]
[1764175648705,9.11994492,137.07,137.01,12.83885357]
[1764175648906,12.83885357,137.05,137.02,3.26]
[1764175649505,12.83885357,137.05,137.02,3.92]
[1764175649705,12.83885357,137.05,137.02,3.26]
[1764175649706,21.64879849,137.04,137.02,3.26]
[1764175650308,21.64879849,137.03,137.02,3.26]
[1764175650506,16.20876149,137.03,137.0,0.66]
[1764175650706,23.60501423,137.06,137.01,3.26]
[1764175651021,8.80994492,137.05,137.01,3.26]
[1764175651212,7.39881657,137.03,137.01,3.26]
[1764175651615,7.39881657,137.04,137.01,3.26]
[1764175651825,7.39881657,137.04,137.01,11.2185463]
[1764175652339,8.80994492,137.05,137.02,0.66]
[1764175652915,16.20876149,137.05,137.02,0.66]
[1764175653809,7.39881657,137.06,137.02,26.20337892]
[1764175654122,8.80994492,137.07,137.03,7.39881657]
[1764175654323,8.80994492,137.07,137.04,3.26]
[1764175654520,8.80994492,137.07,137.04,3.92]
[1764175655122,0.31,137.1,137.05,0.66]
[1764175655330,8.80994492,137.08,137.05,0.66]
[1764175655932,8.80994492,137.08,137.05,7.95628235]
[1764175656114,23.50391731,137.08,137.04,10.55702028]
[1764175656312,7.39881657,137.07,137.04,10.55702028]
[1764175656716,7.39881657,137.07,137.04,11.21702028]
[1764175657118,7.60436445,137.1,137.05,0.66]
[1764175657447,8.80994492,137.08,137.05,0.66]
[1764175657943,16.20876149,137.08,137.05,7.95624522]
[1764175658540,0.31,137.16,137.07,7.39881657]
[1764175658837,8.80994492,137.13,137.09,7.39881657]
[1764175659242,8.80994492,137.13,137.1,0.66]
[1764175659442,8.80994492,137.13,137.11,3.26]
[1764175659927,8.80994492,137.14,137.11,3.92]
[1764175660122,16.20876149,137.14,137.1,7.29370848]
[1764175660442,16.20876149,137.14,137.11,3.26]
[1764175661121,7.39881657,137.13,137.11,3.26]
[1764175662034,8.80994492,137.13,137.11,3.26]
[1764175663424,7.39881657,137.17,137.12,8.05881657]
[1764175663624,7.39881657,137.16,137.13,0.66]
[1764175663819,8.80994492,137.15,137.12,62.7]
[1764175664037,7.39881657,137.15,137.12,62.7]
[1764175664546,14.69012839,137.15,137.12,62.7]
[1764175664723,14.69012839,137.15,137.12,69.99279479]
[1764175665039,7.39881657,137.15,137.12,69.99279479]
[1764175665240,7.39881657,137.15,137.12,70.67279479]
[1764175665740,14.69015148,137.15,137.12,70.67279479]
[1764175665943,7.39881657,137.13,137.11,62.7]
[1764175666145,23.5006514,137.14,137.11,65.96]
[1764175666446,16.10183483,137.14,137.11,66.64]
[1764175666743,7.39881657,137.13,137.11,65.96]
[1764175667351,7.39881657,137.13,137.11,66.64]
[1764175667923,7.39881657,137.13,137.11,65.96]
[1764175669839,8.80994492,137.12,137.11,65.96]
[1764175672443,8.80994492,137.12,137.11,73.93341404]
[1764175673155,11.91272974,137.12,137.11,65.96]
[1764175675638,8.80994492,137.14,137.08,0.68]
[1764175675844,8.80994492,137.09,137.08,65.96]
[1764175676038,8.80994492,137.09,137.08,66.64]
[1764175676853,8.80994492,137.1,137.08,73.93501021]
[1764175677033,11.91272974,137.1,137.08,66.64]
[1764175677451,8.80994492,137.1,137.08,73.93498111]
[1764175677649,8.80994492,137.1,137.09,0.68]
[1764175678242,3.10278482,137.1,137.08,65.96]
[1764175679161,3.10278482,137.09,137.08,62.7]
[1764175679461,3.10278482,137.09,137.08,65.96]
[1764175681571,10.3972629,137.09,137.08,65.96]
[1764175682060,10.3972629,137.09,137.08,3.26]
[1764175685561,8.80994492,137.08,137.07,0.68]
[1764175685759,8.80994492,137.08,137.07,3.94]
[1764175686262,16.1041243,137.1,137.07,3.94]
[1764175686468,25.11880892,137.07,137.01,0.68]
[1764175686637,16.308864,137.07,137.02,0.68]
[1764175686845,8.80994492,137.06,137.03,6.36278482]
[1764175687257,8.80994492,137.06,137.04,0.68]
[1764175688165,8.80994492,137.06,137.04,7.97704541]
[1764175688466,26.7062808,137.09,137.05,0.68]
[1764175688763,11.91272974,137.08,137.06,3.26]
[1764175689067,8.80994492,137.08,137.06,3.26]
[1764175689261,11.91272974,137.08,137.06,3.94]
[1764175689567,11.91272974,137.08,137.06,3.26]
[1764175690963,11.91272974,137.08,137.06,10.55602352]
[1764175691160,8.80994492,137.08,137.07,0.68]
[1764175691866,8.80994492,137.08,137.07,63.38]
[1764175695891,8.80994492,137.08,137.07,70.67554242]
[1764175696373,8.80994492,137.1,137.07,7.97554242]
[1764175696583,8.80994492,137.1,137.08,0.67]
[1764175696761,8.80994492,137.1,137.09,3.26]
[1764175696956,8.80994492,137.1,137.09,3.93]
[1764175697549,7.29266254,137.13,137.09,3.93]
[1764175697869,3.10278482,137.13,137.1,0.67]
[1764175698971,8.80994492,137.11,137.1,0.67]
[1764175699148,8.80994492,137.13,137.1,0.67]
[1764175699350,3.10278482,137.16,137.1,66.47278482]
[1764175699555,8.80994492,137.15,137.11,3.77278482]
[1764175699775,8.80994492,137.15,137.12,10.55275991]
[1764175699951,8.80994492,137.15,137.12,11.22275991]
[1764175700471,11.91272974,137.15,137.12,11.22275991]